bitfinex/quotes_SOLUSD_20241220
["timestamp","ask_amount","ask_price","bid_price","bid_amount"]
[1734692000625,26.07462148,182.26,182.18,23.776884]
[1734692004316,26.07462148,182.28,182.21,26.07462148]
[1734692004631,26.07462148,182.3,182.22,23.776884]
[1734692005123,26.07462148,182.26,182.17,26.07462148]
[1734692006409,8.9444,182.27,182.19,26.07462148]
[1734692006855,26.07462148,182.26,182.17,26.07462148]
[1734692008930,26.07462148,182.24,182.15,26.07462148]
[1734692009434,20.0,182.24,182.17,26.07462148]
[1734692009614,26.07462148,182.26,182.15,0.82329605]
[1734692009810,20.0,182.24,182.17,26.07462148]
[1734692010025,20.0,182.23,182.17,26.07462148]
[1734692010335,20.0,182.23,182.16,26.07462148]
[1734692010649,26.07462148,182.26,182.18,26.07462148]
[1734692011015,16.3015492,182.25,182.15,16.3015492]
[1734692012012,25.2459492,182.27,182.08,0.82328163]
[1734692012216,25.2459492,182.27,182.19,16.3015492]
[1734692012923,16.3015492,182.34,182.19,16.3015492]
[1734692012924,16.3015492,182.29,182.19,16.3015492]
[1734692013129,16.3015492,182.29,182.17,0.82314995]
[1734692013317,16.3015492,182.29,182.12,32.99]
[1734692013318,16.3015492,182.29,182.19,16.3015492]
[1734692013626,16.3015492,182.27,182.17,16.3015492]
[1734692013825,16.3015492,182.27,182.19,16.3015492]
[1734692014230,16.3015492,182.29,182.19,16.3015492]
[1734692014529,16.3015492,182.29,182.21,16.3015492]
[1734692014931,16.3015492,182.27,182.19,20.0]
[1734692015138,16.3015492,182.27,182.17,16.3015492]
[1734692015474,16.3015492,182.27,182.12,0.82317721]
[1734692015475,16.3015492,182.29,182.21,16.3015492]
[1734692015645,16.3015492,182.31,182.24,20.0]
[1734692015821,16.3015492,182.31,182.23,16.3015492]
[1734692016021,16.3015492,182.31,182.21,16.3015492]
[1734692016523,8.511,182.32,182.21,16.3015492]
[1734692016524,16.3015492,182.29,182.21,16.3015492]
[1734692017246,16.3015492,182.29,182.19,16.3015492]
[1734692018333,16.3015492,182.27,182.19,16.3015492]
[1734692018728,16.3015492,182.31,182.22,20.0]
[1734692018934,16.3015492,182.31,182.21,16.3015492]
[1734692019243,8.511,182.32,182.17,0.82292186]
[1734692019431,16.3015492,182.31,182.22,16.3015492]
[1734692019949,16.3015492,182.31,182.2,16.3015492]
[1734692020541,16.3015492,182.31,182.22,16.3015492]
[1734692020845,8.511,182.32,182.22,16.3015492]
[1734692021046,16.3015492,182.31,182.17,0.82293322]
[1734692021238,16.3015492,182.31,182.2,16.3015492]
[1734692021435,8.511,182.32,182.24,16.3015492]
[1734692022976,16.3015492,182.31,182.25,20.0]
[1734692023157,16.3015492,182.29,182.2,16.3015492]
[1734692024831,16.3015492,182.27,182.16,16.3015492]
[1734692026156,20.0,182.24,182.18,16.3015492]
[1734692026533,16.3015492,182.28,182.18,16.3015492]
[1734692027034,8.511,182.32,182.2,16.3015492]
[1734692027035,16.3015492,182.3,182.2,16.3015492]
[1734692027241,20.0,182.27,182.2,16.3015492]
[1734692027746,20.0,182.27,182.11,5.5102]
[1734692027747,16.3015492,182.26,182.14,20.0]
[1734692028051,16.3015492,182.26,182.11,5.5102]
[1734692028052,16.3015492,182.26,182.17,16.3015492]
[1734692029539,20.0,182.27,182.19,16.3015492]
[1734692029735,20.0,182.27,182.17,16.3015492]
[1734692030037,16.3015492,182.26,182.17,16.3015492]
[1734692032465,36.3015492,182.28,182.19,16.3015492]
[1734692033336,16.3015492,182.26,182.17,16.3015492]
[1734692034054,36.3015492,182.28,182.17,16.3015492]
[1734692034242,36.3015492,182.28,182.19,16.3015492]
[1734692034441,8.511,182.32,182.21,16.3015492]
[1734692034642,16.3015492,182.29,182.21,16.3015492]
[1734692034956,16.3015492,182.29,182.19,16.3015492]
[1734692035660,16.3015492,182.29,182.14,20.0]
[1734692035868,16.3015492,182.29,182.19,16.3015492]
[1734692036561,16.3015492,182.29,182.15,0.82317859]
[1734692036562,16.3015492,182.27,182.17,16.3015492]
[1734692036744,8.511,182.32,182.18,20.0]
[1734692037062,16.3015492,182.27,182.18,20.0]
[1734692037258,20.0,182.24,182.15,0.82317859]
[1734692037555,20.0,182.24,182.14,16.3015492]
[1734692039364,4.10714855,182.23,182.14,16.3015492]
[1734692039863,4.10714855,182.22,182.14,16.3015492]
[1734692040363,4.10714855,182.21,182.14,16.3015492]
[1734692040757,4.10714855,182.2,182.14,16.3015492]
[1734692041065,4.10714855,182.19,182.14,16.3015492]
[1734692041570,4.10714855,182.18,182.14,16.3015492]
[1734692041873,4.10714855,182.18,182.13,20.0]
[1734692042265,4.10714855,182.17,182.13,20.0]
[1734692042459,4.10714855,182.17,182.14,17.12490678]
[1734692042657,4.10714855,182.17,182.16,16.3015492]
[1734692042969,16.3015492,182.25,182.16,16.3015492]
[1734692043266,16.3015492,182.25,182.17,0.82321612]
[1734692043564,16.3015492,182.25,182.16,17.12477904]
[1734692044263,8.6464,182.26,182.18,16.3015492]
[1734692044640,16.3015492,182.27,182.18,16.3015492]
[1734692045363,16.3015492,182.27,182.19,0.82312968]
[1734692045944,8.6901,182.3,182.15,5.4464]
[1734692045945,16.3015492,182.25,182.16,17.12464401]
[1734692046257,16.3015492,182.23,182.14,17.12482252]
[1734692047668,16.3015492,182.21,182.12,16.3015492]
[1734692048268,16.3015492,182.24,182.15,16.3015492]
[1734692048439,16.3015492,182.25,182.16,17.12479121]
[1734692048773,20.0,182.27,182.17,23.776884]
[1734692049070,16.3015492,182.26,182.17,23.776884]
[1734692049445,20.0,182.25,182.19,23.776884]
[1734692049663,16.3015492,182.28,182.19,23.776884]
[1734692049876,16.3015492,182.28,182.2,16.3015492]
[1734692050166,24.9916492,182.3,182.22,16.3015492]
[1734692050348,24.9916492,182.3,182.23,23.776884]
[1734692052958,8.6901,182.3,182.23,23.776884]
[1734692053349,24.9916492,182.3,182.23,23.776884]
[1734692053550,8.5411,182.35,182.24,16.3015492]
[1734692053749,24.8426492,182.35,182.28,16.3015492]
[1734692054074,24.8426492,182.35,182.29,23.776884]
[1734692054643,16.3015492,182.33,182.29,23.776884]
[1734692054974,16.3015492,182.31,182.22,16.3015492]
[1734692055167,16.3015492,182.29,182.22,16.3015492]
[1734692055372,16.3015492,182.29,182.2,16.3015492]
[1734692056165,16.3015492,182.29,182.15,5.1874]
[1734692056166,16.3015492,182.25,182.18,16.3015492]
[1734692056874,24.3197492,182.25,182.16,16.3015492]
[1734692057175,24.3197492,182.25,182.18,16.3015492]
[1734692057673,24.3197492,182.25,182.19,23.776884]
[1734692058053,8.0182,182.25,182.21,23.776884]
[1734692058450,16.3015492,182.3,182.22,16.3015492]
[1734692058649,16.3015492,182.3,182.23,23.776884]
[1734692059271,16.3015492,182.28,182.23,23.776884]
[1734692059655,16.3015492,182.3,182.23,23.776884]
[1734692060962,16.3015492,182.32,182.24,16.3015492]
[1734692061162,16.3015492,182.32,182.25,23.776884]
[1734692062360,16.3015492,182.32,182.24,23.776884]
[1734692063854,8.0182,182.34,182.21,21.3631492]
[1734692063855,16.3015492,182.3,182.21,21.3631492]
[1734692064075,16.3015492,182.32,182.23,16.3015492]
[1734692065160,24.3197492,182.34,182.25,16.3015492]
[1734692065665,24.3197492,182.34,182.26,23.776884]
[1734692065861,16.3015492,182.32,182.26,23.776884]
[1734692066064,16.3015492,182.3,182.26,23.776884]
[1734692066583,16.3015492,182.3,182.21,21.3631492]
[1734692066763,16.3015492,182.28,182.19,16.3015492]
[1734692066963,16.3015492,182.26,182.17,16.3015492]
[1734692067469,20.0,182.29,182.17,16.3015492]
[1734692067666,16.3015492,182.28,182.19,16.3015492]
[1734692068191,16.3015492,182.28,182.2,23.776884]
[1734692068580,4.10600566,182.27,182.2,23.776884]
[1734692068967,20.40755486,182.26,182.2,23.776884]
[1734692069173,20.40755486,182.26,182.17,16.3015492]
[1734692069477,4.10600566,182.25,182.17,16.3015492]
[1734692069665,20.0,182.23,182.13,0.82329806]
[1734692069860,20.0,182.23,182.16,16.3015492]
[1734692070057,4.10600566,182.24,182.16,16.3015492]
[1734692070462,4.10600566,182.24,182.18,16.3015492]
[1734692070669,4.10600566,182.22,182.2,16.3015492]
[1734692071182,4.10600566,182.21,182.2,16.3015492]
[1734692073083,4.10600566,182.21,182.18,16.3015492]
[1734692073468,4.10600566,182.2,182.18,16.3015492]
[1734692073969,4.10600566,182.19,182.18,16.3015492]
[1734692074171,3.80840566,182.19,182.18,17.12466786]
[1734692074386,0.08510863,182.22,182.21,20.0]
[1734692074564,0.08510863,182.22,182.21,37.12449525]
[1734692074763,0.02560863,182.22,182.21,37.12449525]
[1734692074963,0.02560863,182.22,182.21,42.19459525]
[1734692076482,8.0182,182.34,182.25,20.0]
[1734692076685,20.31000104,182.37,182.33,16.3015492]
[1734692076867,16.3015492,182.41,182.33,16.3015492]
[1734692077469,8.3753,182.43,182.37,16.3015492]
[1734692077663,19.9715492,182.52,182.41,16.3015492]
[1734692077664,24.6768492,182.47,182.41,16.3015492]
[1734692077869,16.3015492,182.49,182.41,16.3015492]
[1734692079489,16.3015492,182.49,182.42,16.3015492]
[1734692079696,16.3015492,182.49,182.41,16.3015492]
[1734692080069,16.3015492,182.45,182.37,16.3015492]
[1734692080277,16.3015492,182.48,182.39,16.3015492]
[1734692083583,16.3015492,182.5,182.41,16.3015492]
[1734692084190,16.3015492,182.48,182.41,16.3015492]
[1734692084390,16.3015492,182.46,182.37,16.3015492]
[1734692084595,16.3015492,182.44,182.35,16.3015492]
[1734692084795,16.3015492,182.42,182.31,5.0701]
[1734692084997,16.3015492,182.38,182.3,16.3015492]
[1734692085400,24.6319492,182.4,182.3,16.3015492]
[1734692085576,20.0,182.37,182.3,16.3015492]
[1734692085783,20.0,182.35,182.28,16.3015492]
[1734692086083,16.3015492,182.34,182.26,16.3015492]
[1734692086479,16.3015492,182.32,182.24,16.3015492]
[1734692086686,20.0,182.35,182.22,16.3015492]
[1734692086687,24.8627492,182.3,182.22,16.3015492]
[1734692086880,24.8627492,182.3,182.2,16.3015492]
[1734692087306,8.5612,182.3,182.24,16.3015492]
[1734692088398,8.5612,182.3,182.17,0.82300178]
[1734692088399,24.8627492,182.3,182.17,0.82300178]
[1734692088612,24.8627492,182.3,182.21,16.3015492]
[1734692089209,26.07128479,182.34,182.26,26.07128479]
[1734692090600,28.5465,182.35,182.24,26.07128479]
[1734692090601,20.0,182.31,182.24,26.07128479]
[1734692090808,46.07128479,182.34,182.24,26.07128479]
[1734692090999,20.0,182.31,182.24,26.07128479]
[1734692091202,20.0,182.31,182.26,26.07128479]
[1734692091395,20.0,182.31,182.24,26.07128479]
[1734692092581,20.0,182.31,182.22,26.07128479]
[1734692092894,26.07128479,182.3,182.2,26.07128479]
[1734692093299,26.07128479,182.3,182.22,26.07128479]
[1734692093508,20.0,182.31,182.22,26.07128479]
[1734692093808,20.0,182.29,182.22,26.07128479]
[1734692094197,20.0,182.31,182.26,26.07128479]
[1734692094383,20.0,182.31,182.24,26.07128479]
[1734692094810,20.0,182.3,182.24,26.07128479]
[1734692097120,20.0,182.28,182.2,26.07128479]
[1734692097710,20.0,182.26,182.2,26.07128479]
[1734692097899,8.5321,182.25,182.22,26.07128479]
[1734692098126,8.5321,182.25,182.24,26.07128479]
[1734692100092,8.5321,182.25,182.22,26.07128479]
[1734692100293,8.5321,182.25,182.2,26.07128479]
[1734692100695,8.5321,182.25,182.24,26.07128479]
[1734692101418,8.5321,182.32,182.24,52.14256958]
[1734692101597,8.5321,182.32,182.3,26.07128479]
[1734692101802,21.99428231,182.33,182.3,26.07128479]
[1734692102008,21.99428231,182.33,182.32,26.07128479]
[1734692102617,21.99428231,182.33,182.3,26.07128479]
[1734692104128,21.99428231,182.33,182.28,26.07128479]
[1734692104427,21.99428231,182.33,182.26,26.07128479]
[1734692104803,21.99428231,182.33,182.28,26.07128479]
[1734692105235,21.99428231,182.33,182.3,26.07128479]
[1734692106117,21.99428231,182.33,182.26,26.07128479]
[1734692106308,20.0,182.3,182.26,26.07128479]
[1734692106716,20.0,182.28,182.24,26.07128479]
[1734692107431,20.0,182.3,182.26,26.07128479]
[1734692107824,4.5205,182.31,182.17,5.75130933]
[1734692107825,21.99428231,182.33,182.28,26.07128479]
[1734692108023,20.0,182.3,182.28,26.07128479]
[1734692108426,21.99428231,182.33,182.28,26.07128479]
[1734692109214,21.99428231,182.33,182.29,16.28548575]
[1734692109715,21.99428231,182.33,182.31,16.28548575]
[1734692111215,8.0224,182.41,182.31,16.28548575]
[1734692111528,23.93508575,182.45,182.37,16.28548575]
[1734692111733,23.93508575,182.45,182.39,16.28548575]
[1734692111734,9.8505388,182.45,182.39,16.28548575]
[1734692111914,7.6496,182.45,182.39,16.28548575]
[1734692112628,23.93508575,182.45,182.37,16.28548575]
[1734692112928,16.28548575,182.43,182.37,16.28548575]
[1734692113134,20.0,182.4,182.34,26.03719151]
[1734692115121,20.0,182.4,182.35,26.03719151]
[1734692116017,20.0,182.41,182.37,26.03719151]
[1734692116220,20.0,182.42,182.34,26.03719151]
[1734692116636,20.0,182.4,182.34,26.03719151]
[1734692117319,20.0,182.34,182.22,4.6945]
[1734692117532,20.0,182.34,182.29,26.03719151]
[1734692118929,20.0,182.36,182.31,26.03719151]
[1734692119138,21.8422139,182.4,182.35,26.03719151]
[1734692120244,21.8422139,182.4,182.33,26.03719151]
[1734692120614,21.8422139,182.4,182.25,26.03719151]
[1734692120615,33.91799151,182.39,182.3,26.03719151]
[1734692121036,26.03719151,182.35,182.28,26.03719151]
[1734692121238,26.03719151,182.35,182.26,26.03719151]
[1734692121537,20.0,182.32,182.26,26.03719151]
[1734692121837,20.0,182.34,182.28,26.03719151]
[1734692122243,20.0,182.34,182.3,26.03719151]
[1734692123045,20.0,182.34,182.32,26.03719151]
[1734692123425,22.06552158,182.37,182.32,26.03719151]
[1734692123628,22.06552158,182.37,182.35,26.03719151]
[1734692125047,7.8808,182.39,182.35,26.03719151]
[1734692125224,7.8808,182.39,182.33,26.03719151]
[1734692125832,20.0,182.36,182.22,8.1653]
[1734692126033,7.8808,182.39,182.33,26.03719151]
[1734692126535,7.9953,182.44,182.37,26.03719151]
[1734692126836,22.05715974,182.48,182.41,26.03719151]
[1734692127021,26.03719151,182.47,182.39,26.03719151]
[1734692127423,26.03719151,182.45,182.37,26.03719151]
[1734692128148,26.03719151,182.47,182.39,26.03719151]
[1734692129044,56.03719151,182.45,182.37,26.03719151]
[1734692129235,26.03719151,182.43,182.35,26.03719151]
[1734692129553,20.0,182.38,182.33,26.03719151]
[1734692130249,20.0,182.36,182.29,26.03719151]
[1734692131251,46.03719151,182.36,182.29,26.03719151]
[1734692131438,26.03719151,182.38,182.29,26.03719151]
[1734692131638,26.03719151,182.38,182.32,23.776884]
[1734692131955,7.2927,182.39,182.32,23.776884]
[1734692133643,26.03719151,182.38,182.32,23.776884]
[1734692133828,26.03719151,182.38,182.29,26.03719151]
[1734692134030,20.0,182.35,182.29,26.03719151]
[1734692134228,20.0,182.35,182.31,26.03719151]
[1734692134652,20.0,182.36,182.31,26.03719151]
[1734692134845,7.2927,182.39,182.33,26.03719151]
[1734692135160,7.2927,182.39,182.36,23.776884]
[1734692135449,26.03719151,182.44,182.36,23.776884]
[1734692135450,7.4217,182.43,182.36,23.776884]
[1734692135756,7.4217,182.43,182.39,26.03719151]
[1734692136128,30.0,182.47,182.41,26.03719151]
[1734692136328,56.03719151,182.48,182.41,26.03719151]
[1734692136747,26.03719151,182.48,182.41,26.03719151]
[1734692136933,26.03719151,182.48,182.42,23.776884]
[1734692137136,29.47409822,182.49,182.42,23.776884]
[1734692137635,7.4217,182.49,182.42,23.776884]
[1734692138546,3.67,182.53,182.45,26.03719151]
[1734692138747,3.67,182.53,182.46,23.776884]
[1734692138938,7.6406,182.54,182.47,26.03719151]
[1734692139134,12.2244207,182.56,182.49,26.03719151]
[1734692139334,56.03719151,182.58,182.5,23.776884]
[1734692139670,26.03719151,182.62,182.54,23.776884]
[1734692139871,26.03719151,182.58,182.5,26.03719151]
[1734692140177,26.03719151,182.58,182.46,20.0]
[1734692140178,26.03719151,182.54,182.46,26.03719151]
[1734692140378,26.03719151,182.51,182.47,23.776884]
[1734692140574,26.03719151,182.51,182.43,26.03719151]
[1734692141539,26.03719151,182.51,182.44,23.776884]
[1734692141736,56.03719151,182.51,182.43,26.03719151]
[1734692142036,26.03719151,182.51,182.43,26.03719151]
[1734692142233,20.0,182.48,182.43,26.03719151]
[1734692142474,26.03719151,182.57,182.47,26.03719151]
[1734692142657,26.03719151,182.57,182.49,26.03719151]
[1734692143179,26.03719151,182.57,182.5,23.776884]
[1734692144274,20.0,182.55,182.52,23.776884]
[1734692144478,7.4225,182.58,182.52,23.776884]
[1734692145890,26.03719151,182.61,182.53,26.03719151]
[1734692146175,26.03719151,182.61,182.54,23.776884]
[1734692146340,26.03719151,182.59,182.51,26.03719151]
[1734692146541,26.03719151,182.59,182.52,23.776884]
[1734692146741,26.03719151,182.57,182.52,23.776884]
[1734692146960,26.03719151,182.57,182.5,23.776884]
[1734692147466,26.03719151,182.59,182.53,26.03719151]
[1734692148292,26.03719151,182.61,182.54,23.776884]
[1734692149203,26.03719151,182.59,182.52,26.03719151]
[1734692149379,46.03719151,182.58,182.51,26.03719151]
[1734692149560,46.03719151,182.58,182.52,23.776884]
[1734692149757,46.03719151,182.58,182.51,26.03719151]
[1734692149758,46.03719151,182.58,182.49,26.03719151]
[1734692149996,26.03719151,182.56,182.49,26.03719151]
[1734692150162,26.03719151,182.56,182.5,23.776884]
[1734692150506,46.03719151,182.58,182.47,4.5681]
[1734692150672,46.03719151,182.58,182.51,26.03719151]
[1734692151002,46.03719151,182.58,182.47,4.5681]
[1734692151003,26.03719151,182.56,182.48,26.03719151]
[1734692151295,26.03719151,182.54,182.42,4.667]
[1734692151600,26.03719151,182.56,182.47,26.03719151]
[1734692151762,26.03719151,182.56,182.43,26.03719151]
[1734692151763,26.03719151,182.56,182.49,26.03719151]
[1734692151968,26.03719151,182.58,182.51,26.03719151]
[1734692152194,26.03719151,182.6,182.53,26.03719151]
[1734692152370,26.03719151,182.62,182.53,26.03719151]
[1734692152567,26.03719151,182.6,182.54,23.776884]
[1734692152991,26.03719151,182.56,182.49,26.03719151]
[1734692153283,26.03719151,182.54,182.47,26.03719151]
[1734692153698,26.03719151,182.56,182.49,26.03719151]
[1734692153874,20.0,182.58,182.49,26.03719151]
[1734692154075,12.2244207,182.62,182.53,26.03719151]
[1734692154283,12.2244207,182.62,182.55,26.03719151]
[1734692154488,21.25785705,182.63,182.57,26.03719151]
[1734692154801,21.25785705,182.63,182.61,26.03719151]
[1734692155097,8.41252089,182.68,182.61,26.03719151]
[1734692155261,26.03719151,182.68,182.62,23.776884]
[1734692155767,26.03719151,182.67,182.6,26.03719151]
[1734692155962,26.03719151,182.67,182.58,26.03719151]
[1734692156159,26.03719151,182.67,182.54,23.776884]
[1734692156160,26.03719151,182.64,182.56,26.03719151]
[1734692156386,26.03719151,182.62,182.54,49.81407551]
[1734692156966,46.03719151,182.61,182.54,26.03719151]
[1734692157188,46.03719151,182.61,182.52,26.03719151]
[1734692157392,26.03719151,182.59,182.52,26.03719151]
[1734692157687,26.03719151,182.59,182.5,26.03719151]
[1734692158293,26.03719151,182.59,182.47,11.8472]
[1734692158294,20.0,182.54,182.48,26.03719151]
[1734692159566,26.03719151,182.5,182.42,26.03719151]
[1734692159792,20.0,182.44,182.38,26.03719151]
[1734692159995,26.03719151,182.45,182.36,26.03719151]
[1734692160174,26.03719151,182.43,182.34,26.03719151]
[1734692160371,7.7437,182.48,182.32,26.03719151]
[1734692160372,26.03719151,182.41,182.32,26.03719151]
[1734692160903,26.03719151,182.41,182.34,26.03719151]
[1734692161411,26.03719151,182.39,182.31,26.03719151]
[1734692161886,26.03719151,182.35,182.27,26.03719151]
[1734692162084,26.03719151,182.35,182.25,26.03719151]
[1734692162576,26.03719151,182.31,182.21,26.03719151]
[1734692162891,26.03719151,182.29,182.19,26.03719151]
[1734692163284,46.03719151,182.31,182.23,26.03719151]
[1734692163594,7.7045,182.34,182.25,26.03719151]
[1734692163595,26.03719151,182.33,182.25,26.03719151]
[1734692163767,26.03719151,182.33,182.17,0.82308727]
[1734692163768,26.03719151,182.31,182.23,26.03719151]
[1734692164093,20.0,182.31,182.26,26.03719151]
[1734692164280,7.7045,182.34,182.28,26.03719151]
[1734692164672,20.0,182.31,182.26,26.03719151]
[1734692164874,20.0,182.3,182.24,26.03719151]
[1734692165792,20.0,182.31,182.26,26.03719151]
[1734692165974,20.0,182.31,182.24,26.03719151]
[1734692166171,46.03719151,182.29,182.22,26.03719151]
[1734692166375,46.03719151,182.31,182.22,26.03719151]
[1734692166575,46.03719151,182.31,182.24,26.03719151]
[1734692167187,20.0,182.3,182.17,0.82330239]
[1734692167396,20.0,182.3,182.25,26.03719151]
[1734692167900,20.0,182.3,182.26,23.776884]
[1734692169887,20.0,182.3,182.27,26.03719151]
[1734692170084,20.0,182.31,182.27,26.03719151]
[1734692170290,20.0,182.31,182.26,23.776884]
[1734692170576,20.0,182.3,182.28,23.776884]
[1734692171181,7.7045,182.34,182.28,23.776884]
[1734692171368,7.7045,182.34,182.29,26.03719151]
[1734692171573,21.28784798,182.37,182.31,26.03719151]
[1734692171783,21.28784798,182.37,182.3,23.776884]
[1734692171784,21.28784798,182.37,182.35,26.03719151]
[1734692172197,45.53458013,182.47,182.35,26.03719151]
[1734692172389,12.14768862,182.47,182.4,26.03719151]
[1734692172582,26.03719151,182.47,182.38,26.03719151]
[1734692172897,26.03719151,182.45,182.43,23.776884]
[1734692173199,26.03719151,182.49,182.43,23.776884]
[1734692173402,7.2521,182.53,182.4,26.03719151]
[1734692173403,26.03719151,182.47,182.4,26.03719151]
[1734692173893,26.03719151,182.49,182.4,26.03719151]
[1734692174590,26.03719151,182.47,182.4,26.03719151]
[1734692174796,26.03719151,182.49,182.4,26.03719151]
[1734692175503,20.0,182.46,182.4,26.03719151]
[1734692175697,26.03719151,182.51,182.42,26.03719151]
[1734692177485,33.28929151,182.53,182.46,26.03719151]
[1734692177693,20.0,182.52,182.46,26.03719151]
[1734692178105,26.03719151,182.57,182.48,26.03719151]
[1734692178404,26.03719151,182.51,182.44,26.03719151]
[1734692178584,26.03719151,182.51,182.42,26.03719151]
[1734692178779,26.03719151,182.51,182.44,26.03719151]
[1734692178987,26.03719151,182.51,182.35,0.8223426]
[1734692178988,26.03719151,182.51,182.42,26.03719151]
[1734692179681,20.0,182.48,182.42,26.03719151]
[1734692179884,26.03719151,182.45,182.36,26.03719151]
[1734692180106,26.03719151,182.47,182.4,26.03719151]
[1734692180306,20.0,182.48,182.44,26.03719151]
[1734692180693,20.0,182.48,182.4,26.03719151]
[1734692180878,26.03719151,182.47,182.4,26.03719151]
[1734692181082,20.0,182.44,182.38,26.03719151]
[1734692181801,26.03719151,182.43,182.36,26.03719151]
[1734692182408,26.03719151,182.45,182.36,26.03719151]
[1734692182590,26.03719151,182.41,182.32,26.03719151]
[1734692182791,7.601,182.54,182.4,26.03719151]
[1734692182988,26.03719151,182.51,182.42,26.03719151]
[1734692183384,26.03719151,182.51,182.35,0.82225403]
[1734692183385,26.03719151,182.49,182.4,26.03719151]
[1734692183701,26.03719151,182.47,182.4,26.03719151]
[1734692183907,26.03719151,182.49,182.4,26.03719151]
[1734692184099,26.03719151,182.47,182.38,26.03719151]
[1734692184302,26.03719151,182.45,182.38,26.03719151]
[1734692184888,26.03719151,182.47,182.38,26.03719151]
[1734692185802,26.03719151,182.45,182.36,26.03719151]
[1734692186286,26.03719151,182.41,182.32,26.03719151]
[1734692187311,20.0,182.38,182.3,26.03719151]
[1734692187613,7.3608,182.4,182.32,26.03719151]
[1734692188019,26.03719151,182.43,182.34,26.03719151]
[1734692189015,26.03719151,182.41,182.32,26.03719151]
[1734692189189,26.03719151,182.39,182.32,26.03719151]
[1734692189394,26.03719151,182.41,182.32,26.03719151]
[1734692190607,26.03719151,182.43,182.36,26.03719151]
[1734692190788,28.27465781,182.45,182.36,26.03719151]
[1734692190993,26.03719151,182.47,182.38,26.03719151]
[1734692191207,26.03719151,182.47,182.4,26.03719151]
[1734692192017,26.03719151,182.47,182.34,26.03719151]
[1734692192018,26.03719151,182.47,182.38,26.03719151]
[1734692192220,26.03719151,182.45,182.36,26.03719151]
[1734692192794,26.03719151,182.45,182.38,26.03719151]
[1734692193309,7.0671,182.5,182.4,26.03719151]
[1734692193495,26.03719151,182.49,182.4,26.03719151]
[1734692193816,26.03719151,182.48,182.4,26.03719151]
[1734692194018,26.03719151,182.46,182.36,26.03719151]
[1734692194609,26.03719151,182.42,182.34,26.03719151]
[1734692194900,26.03719151,182.4,182.3,26.03719151]
[1734692195514,20.0,182.37,182.28,30.65619151]
[1734692195700,20.0,182.37,182.3,26.03719151]
[1734692196218,7.4819,182.39,182.32,26.03719151]
[1734692196424,26.03719151,182.42,182.32,26.03719151]
[1734692196608,26.03719151,182.42,182.34,26.03719151]
[1734692196808,35.22499078,182.44,182.36,26.03719151]
[1734692197022,28.22029078,182.44,182.36,26.03719151]
[1734692197218,26.03719151,182.48,182.38,26.03719151]
[1734692197402,26.03719151,182.48,182.4,26.03719151]
[1734692197911,26.03719151,182.46,182.38,26.03719151]
[1734692198423,26.03719151,182.48,182.38,26.03719151]
[1734692198620,26.03719151,182.48,182.4,26.03719151]
[1734692198830,18.80562734,182.48,182.4,26.03719151]
[1734692199008,2.19222393,182.52,182.45,26.03719151]
[1734692199207,26.03719151,182.54,182.48,20.0]
[1734692199396,30.81019151,182.61,182.47,26.03719151]
[1734692199397,26.03719151,182.56,182.47,26.03719151]
[1734692199604,26.03719151,182.58,182.49,26.03719151]
[1734692199926,26.03719151,182.56,182.49,26.03719151]
[1734692200106,26.03719151,182.56,182.47,26.03719151]
[1734692200307,26.03719151,182.52,182.43,26.03719151]
[1734692200547,26.03719151,182.5,182.43,26.03719151]
[1734692201227,26.03719151,182.52,182.45,26.03719151]
[1734692202230,26.03719151,182.56,182.47,26.03719151]
[1734692203637,26.03719151,182.52,182.43,26.03719151]
[1734692204343,26.03719151,182.54,182.45,26.03719151]
[1734692204505,26.03719151,182.52,182.37,8.24832652]
[1734692204827,26.03719151,182.54,182.45,26.03719151]
[1734692205725,26.03719151,182.54,182.47,26.03719151]
[1734692205931,46.03719151,182.56,182.49,26.03719151]
[1734692206530,20.28204077,182.59,182.51,26.03719151]
[1734692206731,20.28204077,182.59,182.53,26.03719151]
[1734692207110,33.17869151,182.64,182.55,26.03719151]
[1734692207309,26.03719151,182.64,182.57,26.03719151]
[1734692208418,26.03719151,182.68,182.59,26.03719151]
[1734692208727,26.03719151,182.68,182.61,26.03719151]
[1734692210137,10.00794722,182.69,182.57,26.03719151]
[1734692210138,26.03719151,182.65,182.57,26.03719151]
[1734692210838,26.03719151,182.67,182.59,26.03719151]
[1734692211922,0.6768074,182.69,182.61,26.03719151]
[1734692212119,0.6768074,182.69,182.67,26.03719151]
[1734692213013,0.6768074,182.69,182.68,42.14504591]
[1734692213225,0.6768074,182.69,182.66,42.14504591]
[1734692213919,0.6768074,182.69,182.62,42.14504591]
[1734692214110,0.6768074,182.69,182.58,42.14504591]